Cogmind - Beta 12 @@@ ROGUE MODE // 2023.05.07 @ 16:53:22 Player: Ms. V3-11A Result: Destroyed by L-31 Rogue with Katana Performance ------------- Evolutions (1) 500 Regions Visited (3) 600 Robots Destroyed (58) 290 Value Destroyed (1314) 1314 Prototype IDs (5) 100 Alien Tech Used (0) 0 Bonus (83) 83 TOTAL SCORE: 2887 Bonus ------- Follower Combat Kills 83 Cogmind --------- Core Integrity 0/400 Matter 68/300 Energy 100/100 System Corruption 1% Temperature Cool (6) Movement Core (350) Ox6 Location -9/Storage Parts ------- > --- POWER (1) -------- (None) > --- PROPULSION (3) --- (None) > --- UTILITY (3) ------ Large Storage Unit > --- WEAPON (2) ------- (None) > --- INVENTORY (15) --- Light Ion Engine Improved Hover Unit Improved Hover Unit Improved Hover Unit Improved Hover Unit Medium Storage Unit Medium Storage Unit Machine Analyzer Visual Processing Unit Sensor Array Signal Interpreter Hacking Suite EM Pulse Gun Peak State ------------ > --- POWER ------------ Heavy Ion Engine > --- PROPULSION ------- Light Treads Light Treads Light Treads > --- UTILITY ---------- Cooling System Large Storage Unit Hardened Light Armor Plating > --- WEAPON ----------- Heavy Assault Rifle Autogun > --- INVENTORY -------- Light Ion Engine Light Treads Light Treads Improved Hover Unit Improved Hover Unit Improved Hover Unit Improved Hover Unit Medium Storage Unit Medium Storage Unit Visual Processing Unit Sensor Array Signal Interpreter Hacking Suite EM Pulse Gun Assault Rifle [Rating: 17] Favorites ----------- Power Ion Engine Engine Ion Engine Propulsion Light Treads Treads Light Treads Leg Aluminum Leg Utility Large Storage Unit Device Cooling System Storage Large Storage Unit Protection Hardened Light Armor Plating Weapon Autogun Energy Gun Medium Laser Ballistic Gun Autogun Ballistic Cannon Light Cannon Build | -11 -10 -9 -9 ------- Run | Jun Mat Mat Sto Slots Evolved 2 | . . 2 . Power . | . . . . Propulsion 1 | . . 1 . Utility 1 | . . 1 . Weapon . | . . . . Parts Attached 44 | . 19 22 3 Power 8 | . 4 4 . Engine 8 | . 4 4 . Core . | . . . . Reactor . | . . . . Propulsion 15 | . 6 7 2 Treads 12 | . 3 7 2 Leg 3 | . 3 . . Wheel . | . . . . Hover . | . . . . Flight . | . . . . Utility 7 | . 2 5 . Device 2 | . . 2 . Storage 2 | . 2 . . Processor . | . . . . Hackware . | . . . . Protection 3 | . . 3 . Artifact . | . . . . Weapon 14 | . 7 6 1 Energy Gun 7 | . 4 3 . Energy Cannon . | . . . . Ballistic Gun 6 | . 2 3 1 Ballistic Cannon 1 | . 1 . . Launcher . | . . . . Special Weapon . | . . . . Impact Weapon . | . . . . Slashing Weapon . | . . . . Piercing Weapon . | . . . . Special Melee Weapon . | . . . . Unidentified Prototypes . | . . . . Corrupted Parts 1 | . . 1 . System Corruption 1 | . . 1 . Parts Lost 20 | . 5 4 11 Power 3 | . 1 1 1 Propulsion 7 | . 2 . 5 Utility 2 | . . . 2 Weapon 8 | . 2 3 3 Highest Loss Streak 9 | . 4 3 9 To Critical Strikes 1 | . . 1 . Average Slot Usage (%) 88 | . 83 94 88 Engine 11 | . 13 10 10 Treads 24 | . 19 30 24 Leg 4 | . 8 . . Device 5 | . . 10 10 Storage 12 | . 14 11 11 Protection 4 | . . 9 10 Energy Gun 7 | . 12 4 . Ballistic Gun 16 | . 13 17 21 Naked Turns . | . . . . Heaviest Build 41 | 14 31 41 41 Greatest Support 60 | 20 40 60 60 Greatest Overweight (x) 2 | . . . 2 Average Overweight (x) . | . . . . Largest Inventory Capacity 15 | 8 15 15 15 Average Capacity 13 | 8 12 15 15 Most Carried 15 | 6 15 15 15 Average Carried 12 | 5 10 14 14 Final Capacity 15 | 8 15 15 15 Final Carried 15 | 4 15 15 13 Class Distribution -------------------- 60% | Mutant 39% | Scavenger-Mutant Dominant Class ---------------- Mutant | -10/Materials Scavenger-Mutant | -9/Materials Mutant | -9/Storage Resources | -11 -10 -9 -9 ----------- Run | Jun Mat Mat Sto Matter Collected 1271 | 195 473 550 53 Remotely . | . . . . Salvage Created 1872 | . 480 1056 336 Parts 128 | . 32 72 24 Haulers Intercepted 3 | . 1 2 . Recyclers Shooed 1 | . . 1 . Parts Field Recycled . | . . . . Retrieved Matter . | . . . . Parts Self-Destructed . | . . . . Prevented . | . . . . Kills | -11 -10 -9 -9 ------- Run | Jun Mat Mat Sto Combat Hostiles Destroyed 45 | . 13 24 8 Guns 39 | . 7 24 8 Cannons 4 | . 4 . . Classes Destroyed 12 | . 7 3 2 Worker 2 | . 1 1 . Builder 1 | . 1 . . Hauler 3 | . 1 2 . Recycler 1 | . . . 1 Mechanic 1 | . . 1 . Operator 3 | . 2 1 . Watcher 2 | . 1 1 . Swarmer 18 | . 6 8 4 Grunt 19 | . 7 10 2 Brawler 1 | . . . 1 Duelist 1 | . . 1 . Sentry 6 | . . 5 1 Best Kill Streak 9 | . 4 8 9 Combat Bots Only 8 | . 3 5 8 Max Kills in Single Turn 2 | . 1 2 2 Gunslinging . | . . . . Exploded . | . . . . Melee . | . . . . Uniques/NPCs Destroyed . | . . . . Combat | -11 -10 -9 -9 -------- Run | Jun Mat Mat Sto Damage Taken 3305 | . 831 1124 1350 Core 536 | . 132 92 312 Absorbed by Shields . | . . . . Core Remaining (%) 73 | 100 47 . . Volleys Fired 176 | . 71 71 34 Largest 2 | . 2 2 2 Hottest 100 | . 100 79 46 Shots Fired 329 | . 134 129 66 Gun 308 | . 113 129 66 Cannon 21 | . 21 . . Launcher . | . . . . Special . | . . . . Kinetic 239 | . 65 108 66 Thermal 75 | . 69 6 . Explosive . | . . . . Electromagnetic 15 | . . 15 . Robot Hit Streak 11 | . 7 11 6 Robot Miss Streak 7 | . 7 3 4 Penetration Max . | . . . . Secondary Targets 11 | . . 6 5 Max Gunslinging Chain 1 | . . 1 1 Shots Hit Robots 187 | . 61 86 40 Core Hits 84 | . 26 43 15 Critical Kills 1 | . . . 1 Critical Parts Destroyed 1 | . . . 1 Critical Strikes 9 | . 6 1 2 Burn 4 | . 4 . . Destroy 2 | . . . 2 Blast 2 | . 2 . . Corrupt 1 | . . 1 . Melee Attacks . | . . . . Impact . | . . . . Slashing . | . . . . Piercing . | . . . . Sneak Attacks . | . . . . Combat Hostiles . | . . . . Follow-up Attacks . | . . . . Damage Inflicted 2870 | . 877 1344 649 Guns 2710 | . 744 1317 649 Cannons 133 | . 133 . . Explosions . | . . . . Melee . | . . . . Ramming 27 | . . 27 . Kinetic 2199 | . 419 1131 649 Thermal 517 | . 458 59 . Explosive . | . . . . Electromagnetic 127 | . . 127 . Impact . | . . . . Slashing . | . . . . Piercing . | . . . . Highest Corruption 6 | . 6 1 1 Average Corruption 3 | . 5 1 1 Corruption Purged . | . . . . Corruption Blocked . | . . . . Effects 42 | . 34 4 4 Message Errors 13 | . 11 . 2 Matter Fused 2 | . 2 . . Heat Flow Errors 6 | . 4 1 1 Energy Discharges 6 | . 4 1 1 Parts Rejected 2 | . 2 . . Parts Fused 1 | . 1 . . Data Loss (minor) 4 | . 2 2 . Data Loss (major) 2 | . 2 . . Misfires 3 | . 3 . . Alerts 3 | . 3 . . Overload Shots . | . . . . Overflow Damage . | . . . . Projectiles . | . . . . Explosions . | . . . . Melee . | . . . . Knockbacks 1 | . 1 . . Impact . | . . . . Kinetic 1 | . 1 . . Secondary . | . . . . Self-Inflicted Damage . | . . . . Shots . | . . . . Rammed 4 | . . 4 . Targets Rammed 4 | . . 4 . Kicked . | . . . . Crushed . | . . . . Highest Temperature 347 | . 347 72 221 Average Temperature 83 | . 95 11 128 Received Heat Transfer 876 | . 297 240 339 Effects 3 | . 3 . . Shutdowns 1 | . 1 . . Damage (minor) 2 | . 2 . . Siege Activations . | . . . . Robots Corrupted . | . . . . Combat Hostiles . | . . . . Parts Fried . | . . . . Impact Corruptions . | . . . . Robots Melted 2 | . 2 . . Combat Hostiles 2 | . 2 . . Parts Melted 3 | . 3 . . Heat Transferred 1789 | . 1641 148 . Parts Sabotaged . | . . . . Parts Stolen . | . . . . Parts Stripped . | . . . . Power Chain Reactions . | . . . . Missiles Intercepted . | . . . . Alert | -11 -10 -9 -9 ------- Run | Jun Mat Mat Sto Peak Influence 385 | . 219 385 378 Initial 69 | . . 2 69 Average 124 | . 88 141 201 Maximum Alert Level 1 | . 1 1 1 Low Security (%) 77 | 100 87 79 43 Level 1 22 | . 12 20 56 Level 2 . | . . . . Level 3 . | . . . . Level 4 . | . . . . Level 5 . | . . . . High Security . | . . . . Max Security . | . . . . Squads Dispatched 10 | . 3 4 3 Investigation 2 | . 1 1 . Extermination . | . . . . Reinforcement 6 | . 2 3 1 Assault 2 | . . . 2 Garrison . | . . . . Intercept . | . . . . Searches Triggered . | . . . . Construction Impeded . | . . . . Haulers Reinforced . | . . . . Active Scanning Responses . | . . . . Cargo Convoy Interrupts . | . . . . Stealth | -11 -10 -9 -9 --------- Run | Jun Mat Mat Sto Distress Signals 9 | . 1 4 4 Communications Jammed . | . . . . Distress Signals . | . . . . Times Spotted 88 | . 27 36 25 Peak Tracking Total 8 | . 3 7 8 Tactical Retreats 2 | . . 1 1 Traps | -11 -10 -9 -9 ------- Run | Jun Mat Mat Sto Traps Triggered 7 | . 5 1 1 Indirectly . | . . . . Trap Hack Attempts . | . . . . Triggered . | . . . . Disarmed . | . . . . Reprogrammed 6 | . 6 . . Reused 1 | . 1 . . Traps Extracted . | . . . . Installed . | . . . . Triggered 1 | . 1 . . Machines | -11 -10 -9 -9 ---------- Run | Jun Mat Mat Sto Machines Disabled 1 | . 1 . . Max in Single Turn 1 | . 1 . . Machines Repaired . | . . . . Machines Sabotaged . | . . . . Overloaded Fab Kills . | . . . . Hacking | -11 -10 -9 -9 --------- Run | Jun Mat Mat Sto Machines Accessed 9 | . 6 2 1 Terminals 9 | . 6 2 1 Fabricators . | . . . . Repair Stations . | . . . . Recycling Units . | . . . . Scanalyzers . | . . . . Garrison Access . | . . . . Total Hacks 33 | . 27 4 2 Successful 22 | . 18 3 1 Failed 11 | . 9 1 1 Catastrophic 1 | . . 1 . Database Lockouts . | . . . . Manual 14 | . 12 2 . Terminals 33 | . 27 4 2 Fabricators . | . . . . Repair Stations . | . . . . Recycling Units . | . . . . Scanalyzers . | . . . . Garrison Access . | . . . . Terminal Hacks 18 | . 14 3 1 Robot Schematic 1 | . 1 . . Robot Analysis 1 | . 1 . . Prototype ID Bank 3 | . 3 . . Open Door 1 | . . . 1 Alert Level 1 | . 1 . . Unreport Threat 2 | . . 2 . Reprogram Traps 1 | . 1 . . Maintenance Status 1 | . 1 . . Hauler Manifests 2 | . 2 . . Zone Layout 5 | . 4 1 . Fabricator Hacks . | . . . . Repair Station Hacks . | . . . . Recycling Unit Hacks . | . . . . Scanalyzer . | . . . . Garrison Access Hacks . | . . . . Unauthorized Hacks 4 | . 4 . . Terminals 4 | . 4 . . Botnet 3 | . 3 . . Operators 1 | . 1 . . Fabricators . | . . . . Repair Stations . | . . . . Recycling Units . | . . . . Scanalyzers . | . . . . Garrison Access . | . . . . Data Cores Recovered . | . . . . Used . | . . . . Hacking Detections 9 | . 6 2 1 Full Trace Events . | . . . . Feedback Events . | . . . . Feedback Blocked . | . . . . Robot Schematics Acquired 1 | . 1 . . Robots Built . | . . . . Authchips . | . . . . Time . | . . . . Total Robot Build Rating . | . . . . Part Schematics Acquired . | . . . . Parts Built . | . . . . Authchips . | . . . . Time . | . . . . Total Part Build Rating . | . . . . Parts Repaired . | . . . . Time . | . . . . Parts Recycled . | . . . . Recycled Matter . | . . . . Retrieved Matter . | . . . . Retrieved Components . | . . . . Parts Scanalyzed . | . . . . Part Schematics Acquired . | . . . . Parts Damaged . | . . . . Bothacking | -11 -10 -9 -9 ------------ Run | Jun Mat Mat Sto Used RIF Installer . | . . . . Robots Hacked . | . . . . Non-combat . | . . . . Combat . | . . . . Robot Hacks Applied . | . . . . Relay Couplers Released . | . . . . Fabnet Peak Effective % . | . . . . Robots Rewired . | . . . . Allies Hacked . | . . . . Hacks Repelled . | . . . . Allies | -11 -10 -9 -9 -------- Run | Jun Mat Mat Sto Total Allies 2 | . . . 2 Largest Group 2 | . . . 2 Highest-Rated Group 62 | . . . 62 Highest-Rated Ally 31 | . . . 31 Total Orders . | . . . . Ally Attacks 22 | . . . 22 Total Damage 376 | . . . 376 Kills 5 | . . . 5 Allies Corrupted . | . . . . Allies Melted . | . . . . Intel | -11 -10 -9 -9 ------- Run | Jun Mat Mat Sto Robot Analysis Total 1 | . 1 . . Derelict Logs Recovered . | . . . . Drone Launches . | . . . . Drone Recoveries . | . . . . Exploration | -11 -10 -9 -9 ------------- Run | Jun Mat Mat Sto Turns Passed 2822 | 7 1405 975 435 Spaces Moved 1394 | 2 776 450 166 Core . | . . . . Treads 1160 | . 544 450 166 Legs 234 | 2 232 . . Wheels . | . . . . Hover . | . . . . Flight . | . . . . Fastest Speed 120 | 120 120 160 160 Average Speed 158 | 120 148 160 201 Slowest Speed 320 | 120 160 160 320 Overloaded Moves . | . . . . Propulsion Burnouts . | . . . . Robots Hopped . | . . . . Cave-ins Triggered . | . . . . Exploration Rate (%) 45 | 2 98 50 31 Regions Visited 3 Branch Regions 1 Pre-discovered Areas . | . . . . Known Exits Taken . | . . . . Unknown Exits Taken 3 | 1 1 1 . Scrap Searched . | . . . . Spaces Dug . | . . . . Terrain Destroyed . | . . . . Melee . | . . . . Projectile . | . . . . AOE . | . . . . Terrain Rammed . | . . . . Walls Destroyed . | . . . . Machines Disabled . | . . . . Actions | -11 -10 -9 -9 --------- Run | Jun Mat Mat Sto Total 1710 | 7 903 595 205 Wait 30 | 4 5 21 . Move 1391 | 1 775 449 166 Hop . | . . . . Pick Up 28 | . 19 9 . Fast Attach 20 | . 10 9 1 Attach 12 | . 6 4 2 Detach 4 | . 2 2 . Swap 12 | . 3 9 . Drop 31 | 2 12 17 . Fire 176 | . 71 71 34 Melee . | . . . . Ram . | . . . . Kick . | . . . . Crush 4 | . . 4 . Escape Stasis 2 | . . . 2 Rewire . | . . . . Trap . | . . . . Miscellaneous . | . . . . Route ------- -11/Junkyard -10/Materials (discovered 5 exits: *Mat x3 / [*Min x2]) -9/Materials (discovered 2 exits: [*Min] / *Sto) -9/Storage History --------- Turn | Location | Event 7 | -11/Junkyard | Discovered new exit (range 1) 8 | -11/Junkyard | Entered Materials 234 | -10/Materials | Lost 4 parts (1p2n1w) 261 | -10/Materials | Discovered new exit (range 17) 394 | -10/Materials | Discovered new exit (range 7) 515 | -10/Materials | Discovered new exit (range 16) 557 | -10/Materials | Build established: Mutant 681 | -10/Materials | Discovered new exit (range 16) 810 | -10/Materials | Core integrity fell below 50% 1249 | -10/Materials | Discovered new exit (range 16) 1413 | -10/Materials | Entered another Materials area 1413 | -9/Materials | Evolved 2 slots: Propulsion x1, Utility x1 1484 | -9/Materials | Discovered new exit (range 13) 1565 | -9/Materials | Lost 3 parts (1p2w) 1842 | -9/Materials | Build established: Scavenger-Mutant 1877 | -9/Materials | Discovered new exit (range 14) 2388 | -9/Materials | Entered Storage 2593 | -9/Storage | Destroyed 8 combat bots 2701 | -9/Storage | Met a pair of Derelict thieves 2796 | -9/Storage | Core integrity fell below 50% 2817 | -9/Storage | Core integrity fell below 20% 2823 | -9/Storage | Destroyed by L-31 Rogue with Katana Last Messages --------------- 02795_ K-01 Serf collects debris. 02795_ R-06 Scavenger collects Visual Processing Unit. 02796_ Critical hit (Burn: +37). 02796_ Hvy. Ion Engine destroyed. 02797_ Lgt. Treads destroyed. 02798_ K-01 Serf collects debris. 02798_ R-06 Scavenger collects Aluminum Leg. 02799_ Critical hit (Burn: +37). 02799_ M-13 Machinist repairs L-31 Rogue. 02802_ Lgt. Treads destroyed. 02803_ Cooling System destroyed. 02806_ Hvy. Assault Rifle destroyed. 02811_ M-13 Machinist repairs G-47 Trooper. 02818_ Lgt. Treads destroyed. 02819_ Connecting with Door Terminal... 02819_ Current location identified: Storage >>Open(Door) Sealed Heavy Doors opened. 02823_ M-13 Machinist repairs L-31 Rogue. 02823_ Assault Rifle destroyed. Map ----- +----------------------------------------------------+ | | | | | | | | | | | | | | | | | | | | | | | | | | | ?????????????????????????????????????????????????? | | ??????####???????????????????????????????????????? | | ???? ???????????????????????????????????????? | | ???# ???????????????????????????????????????? | | ???# #??????????????????????????????????????? | | ???# #??????????????????????????????????????? | | ???# #??????????????????????????????????????? | | #??? #??????????????????????????????????????? | | #??? #??????????????????????????????????????? | | #???? # ?????????????????????????????????????? | | #???? # ""?????????###??????????????????????? | | #????? [[[# ""?????#####T##?????????????????????? | | #????? [[ #? """????#!!!m@ #?????????????????????? | | #??????[[ ??? ????#!!!gll#?????????????????????? | | #?????? ??###+###?#####gm#?????????????????????? | | ########+#### #######g########???????????????? | | !% =%!! *%[ g ?????????? | | % [![[ == T ?????????? | | %*=%*]= r ?????????? | | "%%########## #####################??????????? | | #????????#######??????????????????????????????? | | #?????????????????????????????????????????????? | | ###########???????????????????????????????????? | | # #???????????????????????????????????? | | # #???????????????????????????????????? | | # #???????????????????????????????????? | | # #???????????????????????????????????? | | + #???????????????????????????????????? | | # #???????????????????????????????????? | | # #???????????????????????????????????? | | % # #???????????????????????????????????? | | %% ##+##/##+##???????????????????????????????????? | | [ ##???????????????????????????????????? | | ^^ ????????????????????????????? | | #+###+## #### ????????????????????????????? | | % #? #????????????????????????????????????? | | %%%#?? / ???????????????????????????????????? | +----------------------------------------------------+ Best States ------------- Heat Dissipation 50 Energy Generation 14 Energy Capacity 280 Matter Stores 300 Matter Capacity 300 Sight Range 16 Terrain Scan Density 10 Armor Coverage 150 Evasion (%) 55 Recoil Reduction 3 Item Schematics ----------------- None Robot Schematics ------------------ G-34 Mercenary | -10/Materials | Hacked Fabricated ------------ Nothing Alien Tech Used ----------------- None Achievements -------------- None Challenges ------------ None Game ------ Seed WeightTransmissionStabilizer Manual? 0 Play Time 00:30:26 Cumulative 87.9 hours Start 2023.05.07 @ 16:01:05 End 2023.05.07 @ 16:53:22 Sessions 2 Manual Loads 0 Difficulty Rogue Special Mode None Game No. 80 Rogue 35 Adventurer 19 Explorer 26 Win Type - Total 0 Types 0/0/0/0/0/0/0/0/0 Lore% 32 Gallery% 49 Achievement% 66 Wizard Run 0 Options --------- ASCII 0 Keyboard 0 Movement Mouse Keybinds 0 Fullscreen 0 Font 16/Smallcaps Map View 76x50 Tactical HUD 1 Map Filters NONE Filters BRIGHTNESS(125)|SATURATION(75)|LOW_CONTRAST(0,16,30)|SHIFT_HUE(130) Steam 1 RUN: f9b5bf93-bc87-4afc-b2e5-62b0e12f1099